fUSD/lending_fUSD_20250407
["ID","MTS","AMOUNT","RATE_DAILY","PERIOD"]
[357315452,1744004841110,-150.0,0.00053423,90]
[357315453,1744004841144,-150.0,0.00053423,90]
[357315454,1744004841180,-150.0,0.00053424,90]
[357315455,1744004841215,-150.0,0.00053424,90]
[357315456,1744004841250,-150.0,0.00053424,90]
[357315457,1744004841285,-150.0,0.00053424,90]
[357315458,1744004841320,-150.0,0.00053424,90]
[357315459,1744004841357,-150.0,0.00053424,90]
[357315460,1744004841393,-150.0,0.00053424,90]
[357315461,1744004841429,-150.0,0.00053424,90]
[357315462,1744004841466,-150.0,0.00053424,90]
[357315463,1744004841503,-150.0,0.00053424,90]
[357315464,1744004841538,-150.0,0.00053424,90]
[357315465,1744004841573,-150.0,0.00053424,90]
[357315466,1744004841608,-150.0,0.00053424,90]
[357315467,1744004841644,-500.0,0.00053424,120]
[357315468,1744004841680,-500.0,0.00053424,120]
[357315469,1744004841716,-3054.48,0.00053424,30]
[357315470,1744004841751,-998.75,0.00053424,120]
[357315471,1744004841785,-676.99,0.00053424,120]
[357315472,1744004841821,-443.2144594,0.00053424,120]
[357315473,1744004841858,-588.47,0.00053424,120]
[357315474,1744004841893,-150.0,0.00053697,90]
[357315475,1744004842153,-150.0,0.00053697,90]
[357315476,1744004842191,-150.0,0.00053697,90]
[357315477,1744004842230,-150.0,0.00053697,90]
[357315478,1744004842269,-150.0,0.00053697,90]
[357315479,1744004842308,-150.0,0.00053697,90]
[357315480,1744004842346,-150.0,0.00053697,90]
[357315481,1744004842384,-150.0,0.00053697,90]
[357315482,1744004842422,-150.0,0.00053697,90]
[357315483,1744004842464,-150.0,0.00053697,90]
[357315484,1744004842504,-150.0,0.00053697,90]
[357315485,1744004842543,-150.0,0.00053697,90]
[357315486,1744004842583,-150.0,0.00053697,90]
[357315487,1744004842624,-500.0,0.00053698,120]
[357315488,1744004842663,-500.0,0.00053698,120]
[357315489,1744004842705,-3054.48,0.00053698,30]
[357315490,1744004842744,-998.75,0.00053698,120]
[357315491,1744004842782,-676.99,0.00053698,120]
[357315492,1744004842820,-588.47,0.00053698,120]
[357315493,1744004842860,-150.0,0.00053971,90]
[357315494,1744004842899,-150.0,0.00053971,90]
[357315495,1744004842937,-150.0,0.00053971,90]
[357315496,1744004842976,-150.0,0.00053971,90]
[357315497,1744004843012,-150.0,0.00053971,90]
[357315498,1744004843052,-150.0,0.00053971,90]
[357315499,1744004843090,-150.0,0.00053971,90]
[357315500,1744004843128,-150.0,0.00053971,90]
[357315501,1744004843165,-150.0,0.00053971,90]
[357315502,1744004843203,-150.0,0.00053971,90]
[357315503,1744004843241,-150.0,0.00053971,90]
[357315504,1744004843278,-150.0,0.00053971,90]
[357315505,1744004843316,-150.0,0.00053971,90]
[357315506,1744004843354,-512.90551988,0.00053972,120]
[357315507,1744004843392,-500.0,0.00053972,120]
[357315508,1744004843431,-3054.48,0.00053972,30]
[357315509,1744004843470,-998.75,0.00053972,120]
[357315510,1744004843510,-676.99,0.00053972,120]
[357315511,1744004843549,-588.47,0.00053972,120]
[357315512,1744004843588,-150.0,0.00054245,90]
[357315513,1744004843626,-150.0,0.00054245,90]
[357315514,1744004843664,-150.0,0.00054245,90]
[357315515,1744004843703,-150.0,0.00054245,90]
[357315516,1744004843740,-150.0,0.00054245,90]
[357315517,1744004843778,-150.0,0.00054245,90]
[357315518,1744004843816,-150.0,0.00054245,90]
[357315519,1744004843856,-150.0,0.00054245,90]
[357315520,1744004843894,-150.0,0.00054245,90]
[357315521,1744004843935,-150.0,0.00054245,90]
[357315522,1744004843972,-150.0,0.00054245,90]
[357315523,1744004844010,-150.0,0.00054245,90]
[357315524,1744004844048,-500.0,0.00054246,120]
[357315525,1744004844085,-3054.48,0.00054246,30]
[357315526,1744004844123,-998.75,0.00054246,120]
[357315527,1744004844161,-676.99,0.00054246,120]
[357315528,1744004844201,-588.47,0.00054246,120]
[357315529,1744004844238,-150.0,0.00054519,90]
[357315530,1744004844276,-150.0,0.00054519,90]
[357315531,1744004844313,-150.0,0.00054519,90]
[357315532,1744004844360,-150.0,0.00054519,90]
[357315533,1744004844398,-150.0,0.00054519,90]
[357315534,1744004844436,-150.0,0.00054519,90]
[357315535,1744004844476,-150.0,0.00054519,90]
[357315536,1744004844514,-150.0,0.00054519,90]
[357315537,1744004844551,-150.0,0.00054519,90]
[357315538,1744004844588,-150.0,0.00054519,90]
[357315539,1744004844623,-150.0,0.00054519,90]
[357315540,1744004844660,-150.0,0.00054519,90]
[357315541,1744004844697,-500.0,0.0005452,120]
[357315542,1744004844736,-3054.48,0.0005452,30]
[357315543,1744004844773,-998.75,0.0005452,120]
[357315544,1744004844809,-676.99,0.0005452,120]
[357315545,1744004844847,-588.47,0.0005452,120]
[357315546,1744004844887,-150.0,0.00054793,120]
[357315547,1744004844926,-150.0,0.00054793,120]
[357315548,1744004844992,-150.0,0.00054793,120]
[357315549,1744004845030,-150.0,0.00054793,120]
[357315550,1744004845068,-150.0,0.00054793,120]
[357315551,1744004845106,-150.0,0.00054793,120]
[357315552,1744004845144,-150.0,0.00054793,120]
[357315553,1744004845182,-150.0,0.00054793,120]
[357315554,1744004845218,-150.0,0.00054793,120]
[357315555,1744004845255,-150.0,0.00054793,120]
[357315556,1744004845292,-150.0,0.00054793,120]
[357315557,1744004845330,-150.0,0.00054793,120]
[357315558,1744004845367,-150.0,0.00054794,120]
[357315559,1744004845404,-150.0,0.00054794,120]
[357315560,1744004845441,-150.0,0.00054794,120]
[357315561,1744004845480,-150.0,0.00054794,120]
[357315562,1744004845519,-150.0,0.00054794,120]
[357315563,1744004845557,-150.0,0.00054794,120]
[357315564,1744004845594,-150.0,0.00054794,120]
[357315565,1744004845630,-150.0,0.00054794,120]
[357315566,1744004845666,-150.0,0.00054794,120]
[357315567,1744004845703,-150.0,0.00054794,120]
[357315568,1744004845740,-150.0,0.00054794,120]
[357315569,1744004845776,-150.0,0.00054794,120]
[357315570,1744004845813,-544.01843358,0.00054794,120]
[357315571,1744004845850,-3054.48,0.00054794,30]
[357315572,1744004845887,-998.75,0.00054794,120]
[357315573,1744004845921,-676.99,0.00054794,120]
[357315574,1744004845958,-588.47,0.00054794,120]
[357315575,1744004845993,-3054.48,0.00055068,30]
[357315576,1744004846027,-998.75,0.00055068,120]
[357315577,1744004846059,-676.99,0.00055068,120]
[357315578,1744004846092,-588.47,0.00055068,120]
[357315579,1744004846123,-3054.48,0.00055342,30]
[357315580,1744004846157,-998.75,0.00055342,120]
[357315581,1744004846190,-676.99,0.00055342,120]
[357315582,1744004846224,-588.47,0.00055342,120]
[357315583,1744004846259,-3054.54419506,0.00055616,30]
[357315584,1744004846295,-998.83861899,0.00055616,120]
[357315585,1744004846330,-677.16745533,0.00055616,120]
[357315586,1744004846367,-588.48797976,0.00055616,120]
[357315587,1744004846408,-2000.0,0.000602,120]
[357315588,1744004846450,-120766.12525245,0.00061,120]
[357315589,1744004846486,-250.0,0.00061,62]
[357315590,1744004846522,-600.0,0.00061,120]
[357315591,1744004846558,-151.0,0.00061,120]
[357315592,1744004846595,-151.0,0.00061,120]
[357315593,1744004846631,-2287.35,0.00061,60]
[357315594,1744004846667,-748.517517,0.00061,120]
[357315595,1744004846703,-748.517517,0.00061,120]
[357315596,1744004846738,-8999.46,0.00061,60]
[357315597,1744004846771,-962.0,0.00061066,30]
[357315598,1744004846805,-500.0,0.00061091,120]
[357315599,1744004846837,-152.0,0.00061092,32]
[357315600,1744004846870,-151.0,0.0006126,120]
[357315601,1744004846903,-2000000.0,0.000615,120]
[357315602,1744004846935,-151.0,0.000615,120]
[357315603,1744004846969,-151.0,0.000615,120]
[357315604,1744004847002,-748.517517,0.000615,120]
[357315605,1744004847035,-748.517517,0.000615,120]
[357315606,1744004847068,-442.65,0.00061629,120]
[357315607,1744004847102,-449.35679,0.0006164,113]
[357315608,1744004847137,-500.0,0.00061643,120]
[357315609,1744004847172,-962.0,0.00061665,30]
[357315610,1744004847208,-152.0,0.00061804,33]
[357315611,1744004847245,-400.0,0.00062,120]
[357315612,1744004847282,-1000000.0,0.00062,120]
[357315613,1744004847324,-593219.48369255,0.00062,120]
[357315614,1744004848017,200.0,0.00039627,30]
[357315615,1744004848082,207.4,0.00039627,30]
[357315616,1744004848157,215.0738,0.00039627,30]
[357315617,1744004848227,223.0315306,0.00039627,30]
[357315618,1744004848295,231.28369723,0.00039627,30]
[357315619,1744004848388,239.84119403,0.00039627,30]
[357315620,1744004848440,248.71531821,0.00039627,30]
[357315621,1744004848505,257.91778498,0.00039627,30]
[357315622,1744004848562,267.46074303,0.00039627,30]
[357315623,1744004848620,277.35679052,0.00039627,30]
[357315624,1744004848908,287.61899177,0.00039627,30]
[357315625,1744004849988,298.26089446,0.00039627,30]
[357315626,1744004850685,309.29654756,0.00039627,30]
[357315627,1744004851308,320.74051982,0.00039627,30]
[357315628,1744004852729,332.60791905,0.00039627,30]
[357315629,1744004853534,344.91441206,0.00039627,30]
[357315630,1744004854167,357.6762453,0.00039627,30]
[357315631,1744004854823,370.91026638,0.00039627,30]
[357315632,1744004855445,384.63394623,0.00039627,30]
[357315633,1744004856132,384.63394623,0.00039627,30]
[357315634,1744004882114,-1384.73,0.000443,36]
[357315635,1744004882159,-1384.73,0.000443,36]
[357315636,1744004882202,-1384.73,0.000443,36]
[357315637,1744004882247,-1384.73,0.000443,36]
[357315638,1744004882290,-1384.73,0.000443,36]
[357315639,1744004882335,-1384.73,0.000443,36]
[357315640,1744004882378,-1384.73,0.000443,36]
[357315641,1744004882421,-1384.73,0.000443,36]
[357315642,1744004882463,-1384.73,0.000443,36]
[357315643,1744004882506,-1384.73,0.000443,36]
[357315644,1744004882549,-1384.73,0.000443,36]
[357315645,1744004882592,-1384.73,0.000443,36]
[357315646,1744004882636,-500.0,0.00049315,120]
[357315647,1744004882921,-500.0,0.00049315,120]
[357315648,1744004882964,-500.0,0.00049315,120]
[357315649,1744004883003,-533.30668087,0.00049315,120]
[357315650,1744004883042,-500.0,0.00049315,120]
[357315651,1744004883082,-500.0,0.00049315,120]
[357315652,1744004883123,-500.0,0.00049315,120]
[357315653,1744004883163,-1000.0,0.00049315,120]
[357315654,1744004883202,-500.0,0.00049315,120]
[357315655,1744004883247,-500.0,0.00049315,120]
[357315656,1744004883287,-2000.0,0.00049315,30]
[357315657,1744004883329,-500.0,0.00049315,120]
[357315658,1744004883370,-500.0,0.00049315,120]
[357315659,1744004883417,-500.0,0.00049589,120]
[357315660,1744004883459,-500.0,0.00049589,120]
[357315661,1744004883500,-175.82965765,0.00049589,120]
[357315662,1744004883551,-500.0,0.00049589,120]
[357315663,1744004883599,-500.0,0.00049589,120]
[357315664,1744004883642,-500.0,0.00049589,120]
[357315665,1744004883684,-1000.0,0.00049589,120]
[357315666,1744004883724,-500.0,0.00049589,120]
[357315667,1744004883764,-500.0,0.00049589,120]
[357315668,1744004883802,-2000.0,0.00049589,30]
[357315669,1744004883840,-500.0,0.00049589,120]
[357315670,1744004883878,-500.0,0.00049589,120]
[357315671,1744004883915,-1066.0,0.00049638,30]
[357315672,1744004883956,-500.0,0.00049863,120]
[357315673,1744004883995,-500.0,0.00049863,120]
[357315674,1744004884033,-500.0,0.00049863,120]
[357315675,1744004884072,-500.0,0.00049863,120]
[357315676,1744004884112,-500.0,0.00049863,120]
[357315677,1744004884150,-1000.0,0.00049863,120]
[357315678,1744004884188,-500.0,0.00049863,120]
[357315679,1744004884227,-500.0,0.00049863,120]
[357315680,1744004884266,-2114.46384158,0.00049863,30]
[357315681,1744004884304,-500.0,0.00049863,120]
[357315682,1744004884344,-500.0,0.00049863,120]
[357315683,1744004884384,-500.0,0.00050136,120]
[357315684,1744004884423,-210.23389324,0.00050136,120]
[357315685,1744004884463,-500.0,0.00050136,120]
[357315686,1744004884502,-500.0,0.00050136,120]
[357315687,1744004884541,-500.0,0.00050136,120]
[357315688,1744004884580,-1000.0,0.00050136,120]
[357315689,1744004884619,-500.0,0.00050136,120]
[357315690,1744004884658,-500.0,0.00050136,120]
[357315691,1744004884699,-500.0,0.00050136,120]
[357315692,1744004884739,-500.0,0.00050136,120]
[357315693,1744004884779,-500.0,0.0005041,120]
[357315694,1744004884818,-500.0,0.0005041,120]
[357315695,1744004884856,-500.0,0.0005041,120]
[357315696,1744004884898,-500.0,0.0005041,120]
[357315697,1744004884939,-853.65447529,0.0005041,120]
[357315698,1744004884981,-500.0,0.0005041,120]
[357315699,1744004885020,-500.0,0.0005041,120]
[357315700,1744004885059,-500.0,0.0005041,120]
[357315701,1744004885097,-500.0,0.00050684,120]
[357315702,1744004885135,-500.0,0.00050684,120]
[357315703,1744004885172,-500.0,0.00050684,120]
[357315704,1744004885211,-594.20081508,0.00050684,120]
[357315705,1744004885248,-500.0,0.00050684,120]
[357315706,1744004885286,-500.0,0.00050684,120]
[357315707,1744004885323,-406.45254538,0.00050684,120]
[357315708,1744004885361,-500.0,0.00050958,120]
[357315709,1744004885399,-500.0,0.00050958,120]
[357315710,1744004885438,-500.0,0.00050958,120]
[357315711,1744004885479,-644.52592607,0.00050958,120]
[357315712,1744004885518,-500.0,0.00050958,120]
[357315713,1744004885555,-500.0,0.00051232,120]
[357315714,1744004885592,-573.5921966,0.00051232,120]
[357315715,1744004885628,-500.0,0.00051232,120]
[357315716,1744004885665,-500.0,0.00051232,120]
[357315717,1744004885702,-500.0,0.00051506,120]
[357315718,1744004885787,-500.0,0.00051506,120]
[357315719,1744004885824,-500.0,0.00051506,120]
[357315720,1744004885859,-500.0,0.0005178,120]
[357315721,1744004885896,-500.0,0.0005178,120]
[357315722,1744004885934,-518.36617351,0.0005178,120]
[357315723,1744004885972,-547.91057765,0.00052054,120]
[357315724,1744004886008,-500.0,0.00052054,120]
[357315725,1744004886042,-1066.0,0.0005225,30]
[357315726,1744004886077,-500.0,0.00052328,120]
[357315727,1744004886112,-500.0,0.00052602,120]
[357315728,1744004886147,-500.0,0.00052876,120]
[357315729,1744004886180,-500.0,0.0005315,120]
[357315730,1744004886216,-545.73271434,0.00053424,120]
[357315731,1744004886252,-1066.0,0.00055,120]
[357315732,1744004886293,-1384.73,0.000568,57]
[357315733,1744004886333,-1384.73,0.000568,57]
[357315734,1744004886375,-1384.73,0.000568,57]
[357315735,1744004886417,-1384.73,0.000568,57]
[357315736,1744004886459,-1384.73,0.000568,57]
[357315737,1744004886501,-1384.73,0.000568,57]
[357315738,1744004886544,-1384.73,0.000568,57]
[357315739,1744004886585,-1384.73,0.000568,57]
[357315740,1744004886626,-1384.73,0.000568,57]
[357315741,1744004886668,-1384.73,0.000568,57]
[357315742,1744004886710,-1384.73,0.000568,57]
[357315743,1744004886751,-1384.73,0.000568,57]
[357315744,1744004886791,-1384.73,0.000568,57]
[357315745,1744004886832,-1384.73,0.000568,57]
[357315746,1744004886872,-1384.73,0.000568,57]
[357315747,1744004886913,-1384.73,0.000568,57]
[357315748,1744004886951,-1384.73,0.000568,57]
[357315749,1744004886993,-1384.73,0.000568,57]
[357315750,1744004887033,-1384.73,0.000568,57]
[357315751,1744004887073,-1384.73,0.000568,57]
[357315752,1744004887116,-1384.73,0.000568,57]
[357315753,1744004887158,-1384.73,0.000568,57]
[357315754,1744004887201,-1384.73,0.000568,57]
[357315755,1744004887245,-1384.73,0.000568,57]
[357315756,1744004887285,-1066.0,0.0005775,120]
[357315757,1744004887329,-3000.0,0.000599,120]
[357315758,1744004887371,-1066.0,0.00060638,120]
[357315759,1744004887413,-150.0,0.00060863,30]
[357315760,1744004887454,-318.88996289,0.00061,120]
[357315761,1744004887498,-300.0,0.00061035,30]
[357315762,1744004887538,-2000.0,0.000612,120]
[357315763,1744004887578,-150.0,0.00061344,30]
[357315764,1744004887617,-152.58123164,0.00061394,30]
[357315765,1744004887658,-150.0,0.00061492,30]
[357315766,1744004887699,-150.0,0.0006157,30]
[357315767,1744004887742,-150.0,0.00061642,30]
[357315768,1744004887781,-150.0,0.00061952,30]
[357315769,1744004887822,-406780.51630745,0.00062,120]
[357315770,1744004887859,-5000.0,0.00062,120]
[357315771,1744004887900,-250.0,0.00062,63]
[357315772,1744004887939,-64070.5637673,0.00062,120]
[357315773,1744004887980,-707.0,0.00062,120]
[357315774,1744004888018,-169.7769,0.00062,120]
[357315775,1744004888057,-151.0,0.00062,120]
[357315776,1744004888096,-748.517517,0.00062,120]
[357315777,1744004888136,-748.517517,0.00062,120]
[357315778,1744004888177,-3000.0,0.000622,120]
[357315779,1744004888216,-213.0,0.0006228,120]
[357315780,1744004888257,-210.0,0.0006228,30]
[357315781,1744004888298,-2000000.0,0.000625,120]
[357315782,1744004888339,-151.0,0.000625,120]
[357315783,1744004888378,-748.517517,0.000625,120]
[357315784,1744004888418,-748.517517,0.000625,120]
[357315785,1744004888461,-151.0,0.000625,120]
[357315786,1744004888500,-463.39833115,0.00062736,120]
[357315787,1744004888540,-181.43381984,0.000629,120]
[357315788,1744004888581,-1000000.0,0.00063,120]
[357315789,1744004888623,-405437.22011447,0.00063,120]
[357315790,1744004905989,-508.72037831,0.00049315,120]
[357315791,1744004906028,-500.0,0.00049315,30]
[357315792,1744004906072,-500.0,0.00049315,120]
[357315793,1744004906112,-500.0,0.00049315,120]
[357315794,1744004906154,-500.0,0.00049315,120]
[357315795,1744004906204,-500.0,0.00049589,120]
[357315796,1744004906247,-500.0,0.00049589,120]
[357315797,1744004906289,-500.0,0.00049589,120]
[357315798,1744004906332,-500.0,0.00049863,120]
[357315799,1744004906374,-500.0,0.00049863,120]
[357315800,1744004906417,-500.0,0.00049863,120]
[357315801,1744004906459,-500.0,0.00050136,120]
[357315802,1744004906499,-500.0,0.00050136,120]
[357315803,1744004906539,-500.0,0.00050136,120]
[357315804,1744004906578,-500.0,0.0005041,120]
[357315805,1744004906618,-500.0,0.0005041,120]
[357315806,1744004906658,-500.0,0.0005041,120]
[357315807,1744004906696,-500.0,0.0005041,120]
[357315808,1744004906735,-500.0,0.00050684,120]
[357315809,1744004906773,-500.0,0.00050684,120]
[357315810,1744004906808,-500.0,0.00050684,120]
[357315811,1744004906844,-177.42004371,0.00050958,120]
[357315812,1744004906880,-500.0,0.00050958,120]
[357315813,1744004906915,-500.0,0.00050958,120]
[357315814,1744004906952,-352.77544171,0.00051232,120]
[357315815,1744004906991,-500.0,0.00051232,120]
[357315816,1744004907027,-583.74328768,0.00051506,120]
[357315817,1744004907067,-500.0,0.00053424,90]
[357315818,1744004907101,-500.0,0.00053424,90]
[357315819,1744004907136,-500.0,0.00053424,90]
[357315820,1744004907169,-500.0,0.00053424,90]
[357315821,1744004907204,-500.0,0.00053424,90]
[357315822,1744004907239,-500.0,0.00053424,90]
[357315823,1744004907274,-500.0,0.00053424,90]
[357315824,1744004907310,-500.0,0.00053424,90]
[357315825,1744004907347,-500.0,0.00053424,90]
[357315826,1744004907385,-500.0,0.00053424,90]
[357315827,1744004907423,-500.0,0.00053424,90]
[357315828,1744004907461,-500.0,0.00053429,90]
[357315829,1744004907502,-500.0,0.00053429,90]
[357315830,1744004907541,-500.0,0.00053429,90]
[357315831,1744004907583,-500.0,0.00053429,90]
[357315832,1744004907620,-500.0,0.00053429,90]
[357315833,1744004907655,-500.0,0.00053429,90]
[357315834,1744004907690,-500.0,0.00053429,90]
[357315835,1744004907726,-500.0,0.00053429,90]
[357315836,1744004907761,-500.0,0.00053429,90]
[357315837,1744004907795,-500.0,0.00053429,90]
[357315838,1744004907831,-444.07029734,0.00053429,90]
[357315839,1744004907872,-500.0,0.00053999,90]
[357315840,1744004907908,-500.0,0.00053999,90]
[357315841,1744004907943,-500.0,0.00053999,90]
[357315842,1744004907982,-500.0,0.00053999,90]
[357315843,1744004908017,-500.0,0.00053999,90]
[357315844,1744004908052,-500.0,0.00053999,90]
[357315845,1744004908088,-500.0,0.00053999,90]
[357315846,1744004908125,-500.0,0.00053999,90]
[357315847,1744004908163,-500.0,0.00053999,90]
[357315848,1744004908203,-500.0,0.00053999,90]
[357315849,1744004908243,-500.0,0.00054794,120]
[357315850,1744004908281,-500.0,0.00054794,120]
[357315851,1744004908320,-500.0,0.00054794,120]
[357315852,1744004908360,-500.0,0.00054794,120]
[357315853,1744004908402,-500.0,0.00054794,120]
[357315854,1744004908442,-500.0,0.00054794,120]
[357315855,1744004908488,-500.0,0.00054794,120]
[357315856,1744004908533,-500.0,0.00054794,120]
[357315857,1744004908574,-500.0,0.00054794,120]
[357315858,1744004908615,-500.0,0.00054794,120]
[357315859,1744004908656,-500.0,0.00054794,120]
[357315860,1744004908698,-500.0,0.00054794,120]
[357315861,1744004908748,-500.0,0.00054794,120]
[357315862,1744004909085,-500.0,0.00054794,120]
[357315863,1744004909125,-500.0,0.00054794,120]
[357315864,1744004909163,-500.0,0.00054794,120]
[357315865,1744004909198,-500.0,0.00054794,120]
[357315866,1744004909234,-500.0,0.00054794,120]
[357315867,1744004909269,-500.0,0.00054794,120]
[357315868,1744004909303,-500.0,0.00054794,120]
[357315869,1744004909339,-500.0,0.00054794,120]
[357315870,1744004909374,-500.0,0.00054794,120]
[357315871,1744004909412,-264.1437663,0.00054794,120]
[357315872,1744004909450,-500.0,0.00054989,120]
[357315873,1744004909490,-500.0,0.00054989,120]
[357315874,1744004909529,-500.0,0.00054989,120]
[357315875,1744004909567,-500.0,0.00054989,120]
[357315876,1744004909605,-500.0,0.00054989,120]
[357315877,1744004909644,-500.0,0.00054989,120]
[357315878,1744004909682,-500.0,0.00054989,120]
[357315879,1744004909719,-500.0,0.00054989,120]
[357315880,1744004909758,-500.0,0.00054989,120]
[357315881,1744004909795,-500.0,0.00054989,120]
[357315882,1744004909832,-500.0,0.00054999,120]
[357315883,1744004909872,-500.0,0.00054999,120]
[357315884,1744004909911,-500.0,0.00054999,120]
[357315885,1744004909951,-500.0,0.00054999,120]
[357315886,1744004909988,-500.0,0.00054999,120]
[357315887,1744004910024,-500.0,0.00054999,120]
[357315888,1744004910058,-500.0,0.00054999,120]
[357315889,1744004910092,-500.0,0.00054999,120]
[357315890,1744004910127,-500.0,0.00054999,120]
[357315891,1744004910161,-500.0,0.00054999,120]
[357315892,1744004910195,-500.0,0.00055029,120]
[357315893,1744004910234,-500.0,0.00055029,120]
[357315894,1744004910270,-500.0,0.00055029,120]
[357315895,1744004910307,-500.0,0.00055029,120]
[357315896,1744004910343,-500.0,0.00055029,120]
[357315897,1744004910381,-500.0,0.00055029,120]
[357315898,1744004910419,-500.0,0.00055029,120]
[357315899,1744004910457,-500.0,0.00055029,120]
[357315900,1744004910495,-500.0,0.00055029,120]
[357315901,1744004910529,-500.0,0.00055029,120]
[357315902,1744004910563,-500.0,0.00055461,120]
[357315903,1744004910596,-500.0,0.00055461,120]
[357315904,1744004910629,-500.0,0.00055461,120]
[357315905,1744004910662,-500.0,0.00055461,120]
[357315906,1744004910695,-500.0,0.00055461,120]
[357315907,1744004910728,-500.0,0.00055461,120]
[357315908,1744004910762,-500.0,0.00055461,120]
[357315909,1744004910794,-500.0,0.00055461,120]
[357315910,1744004910826,-500.0,0.00055461,120]
[357315911,1744004910857,-500.0,0.00055461,120]
[357315912,1744004910895,-150.0,0.00061403,30]
[357315913,1744004910927,-3000.0,0.000622,120]
[357315914,1744004910961,-594562.77988553,0.00063,120]
[357315915,1744004910992,-1000.0,0.00063,120]
[357315916,1744004911023,-250.0,0.00063,64]
[357315917,1744004911054,-300.0,0.00063,120]
[357315918,1744004911086,-151.0,0.00063,120]
[357315919,1744004911118,-748.517517,0.00063,120]
[357315920,1744004911150,-748.517517,0.00063,120]
[357315921,1744004911183,-8999.46,0.00063,60]
[357315922,1744004911219,-909000.0,0.00063,120]
[357315923,1744004911260,-500.0,0.00063013,120]
[357315924,1744004911293,-159.86541149,0.00063013,120]
[357315925,1744004911327,-500.0,0.00063013,120]
[357315926,1744004911360,-2419598.98645393,0.00063014,30]
[357315927,1744004915736,-892.03,0.00049315,120]
[357315928,1744004915773,-235.78551554,0.00049315,120]
[357315929,1744004915815,-892.03,0.00049589,120]
[357315930,1744004915851,-892.03,0.00049863,120]
[357315931,1744004915889,-892.03,0.00050136,120]
[357315932,1744004915927,-892.03,0.0005041,120]
[357315933,1744004915965,-892.03,0.00050684,120]
[357315934,1744004916001,-892.03,0.00050958,120]
[357315935,1744004916038,-892.03,0.00051232,120]
[357315936,1744004916073,-892.03,0.00051506,120]
[357315937,1744004916109,-892.03,0.0005178,120]
[357315938,1744004916146,-892.03,0.00052054,120]
[357315939,1744004916187,-892.03,0.00052328,120]
[357315940,1744004916224,-892.03,0.00052602,120]
[357315941,1744004916263,-892.03,0.00052876,120]
[357315942,1744004916298,-892.03,0.0005315,120]
[357315943,1744004916335,-892.03,0.00053424,120]
[357315944,1744004916375,-892.03,0.00053698,120]
[357315945,1744004916420,-892.03,0.00053972,120]
[357315946,1744004916465,-892.03,0.00054246,120]
[357315947,1744004916524,-892.03,0.0005452,120]
[357315948,1744004916574,-892.03,0.00054794,120]
[357315949,1744004916620,-892.03,0.00055068,120]
[357315950,1744004916665,-500.0,0.00056733,120]
[357315951,1744004916712,-500.0,0.00057007,120]